Cogmind - Beta 13 @@@ ROGUE MODE // 2024.07.05 @ 15:40:51 Player: RealTimeWarfare Result: Destroyed by G-47 Trooper with Particle Gun Performance ------------- Evolutions (1) 500 Regions Visited (3) 600 Robots Destroyed (28) 140 Value Destroyed (639) 639 Prototype IDs (1) 20 Alien Tech Used (0) 0 Bonus (0) 0 TOTAL SCORE: 1899 Bonus ------- None Cogmind --------- Core Integrity 0/400 Matter 238/300 Energy 100/100 System Corruption 4% Temperature Cool (16) Movement Core (1400) Ox27 Location -9/Mines Parts ------- > --- POWER (1) -------- (None) > --- PROPULSION (3) --- (None) > --- UTILITY (3) ------ Huge Storage Unit Visual Processing Unit > --- WEAPON (2) ------- Small Laser Heavy Assault Rifle > --- INVENTORY (25) --- Light Ion Engine Aluminum Leg Aluminum Leg Aluminum Leg Wheel Compact Wheel Flight Unit Terrain Scan Processor Salvage Targeting Computer Assault Rifle Grenade Launcher Hammer Peak State ------------ > --- POWER ------------ Reinforced Ion Engine > --- PROPULSION ------- Light Treads Light Treads Wheel > --- UTILITY ---------- Huge Storage Unit > --- WEAPON ----------- Improved EM Shotgun Assault Rifle > --- INVENTORY -------- Light Ion Engine Aluminum Leg Aluminum Leg Aluminum Leg Wheel Compact Wheel Flight Unit Terrain Scan Processor Small Laser Assault Rifle Grenade Launcher Hammer [Rating: 11] Favorites ----------- Power Improved Ion Engine Engine Improved Ion Engine Propulsion Wheel Treads Light Treads Leg Aluminum Leg Wheel Wheel Flight Unit Flight Unit Utility Huge Storage Unit Device ECM Suite Storage Huge Storage Unit Processor Visual Processing Unit Protection Light Armor Plating Weapon Assault Rifle Energy Gun Small Laser Ballistic Gun Assault Rifle Launcher Grenade Launcher Build | -11 -10 -9 -9 ------- Run | Yrd Mat Mat Min Slots Evolved 2 | . . 2 . Power . | . . . . Propulsion 1 | . . 1 . Utility 1 | . . 1 . Weapon . | . . . . Parts Attached 33 | 5 12 12 4 Power 3 | 1 1 1 . Engine 3 | 1 1 1 . Core . | . . . . Reactor . | . . . . Propulsion 18 | 2 8 8 . Treads 2 | . . 2 . Leg 6 | . 3 3 . Wheel 9 | 2 4 3 . Hover . | . . . . Flight 1 | . 1 . . Utility 4 | . 2 . 2 Device 1 | . 1 . . Storage 1 | . 1 . . Processor 1 | . . . 1 Hackware . | . . . . Protection 1 | . . . 1 Artifact . | . . . . Weapon 8 | 2 1 3 2 Energy Gun 3 | 1 . 1 1 Energy Cannon . | . . . . Ballistic Gun 3 | 1 . 1 1 Ballistic Cannon . | . . . . Launcher 2 | . 1 1 . Special Weapon . | . . . . Impact Weapon . | . . . . Slashing Weapon . | . . . . Piercing Weapon . | . . . . Special Melee Weapon . | . . . . Unidentified Prototypes 1 | . . 1 . Parts Lost 12 | . 2 6 4 Power 2 | . . 1 1 Propulsion 5 | . 1 2 2 Utility 2 | . 1 . 1 Weapon 3 | . . 3 . Highest Loss Streak 4 | . 2 3 4 To Critical Strikes 2 | . . 1 1 Average Slot Usage (%) 59 | . 84 71 43 Engine 5 | . 14 8 . Treads 4 | . . 11 1 Leg 1 | . . 3 . Wheel 8 | . 21 14 . Device 1 | . 7 . . Storage 11 | . 12 11 11 Processor 5 | . . . 11 Energy Gun 5 | . . 1 9 Ballistic Gun 11 | . 14 12 9 Launcher 4 | . 13 7 . Naked Turns . | . . . . Heaviest Build 95 | 6 94 95 93 Greatest Support 40 | 20 20 40 40 Greatest Overweight (x) 27 | . 9 9 27 Average Overweight (x) 6 | . 5 3 22 Largest Inventory Capacity 25 | 5 25 25 25 Average Capacity 23 | 5 22 25 25 Most Carried 14 | 5 10 14 14 Average Carried 10 | 3 6 10 12 Final Capacity 25 | 5 25 25 25 Final Carried 14 | 4 8 14 12 Class Distribution -------------------- 100% | Mutant Dominant Class ---------------- Mutant | -10/Materials Mutant | -9/Materials Mutant | -9/Mines Resources | -11 -10 -9 -9 ----------- Run | Yrd Mat Mat Min Matter Collected 933 | 262 118 502 51 Remotely . | . . . . Salvage Created 819 | 49 118 604 48 Parts 50 | 1 10 35 4 Haulers Intercepted . | . . . . Recyclers Shooed 1 | . . 1 . Parts Field Recycled . | . . . . Retrieved Matter . | . . . . Parts Self-Destructed . | . . . . Prevented . | . . . . Kills | -11 -10 -9 -9 ------- Run | Yrd Mat Mat Min Combat Hostiles Destroyed 21 | 1 5 12 3 Melee 2 | . . . 2 Guns 12 | 1 2 8 1 AOE 7 | . 3 4 . Classes Destroyed 7 | 1 1 5 . Builder 3 | . . 3 . Recycler 2 | . . 2 . Watcher 2 | . . 2 . Swarmer 8 | . 3 3 2 Grunt 9 | 1 2 5 1 Brawler 1 | . . 1 . Sentry 3 | . . 3 . Best Kill Streak 5 | 1 3 5 1 Combat Bots Only 4 | 1 3 4 1 Max Kills in Single Turn 2 | 1 2 1 1 Gunslinging . | . . . . Exploded 2 | . 2 1 . Melee 1 | . . . 1 Uniques/NPCs Destroyed . | . . . . Combat | -11 -10 -9 -9 -------- Run | Yrd Mat Mat Min Hostile Shots Fired 229 | 5 16 127 81 Missed 60 | 1 3 38 18 Damage Taken 1713 | 46 166 939 562 Core 412 | . 10 127 275 Absorbed by Shields . | . . . . Core Remaining (%) 98 | 100 96 . . Volleys Fired 78 | 4 12 57 5 Largest 2 | 2 2 2 2 Hottest 65 | 60 50 65 63 Shots Fired 125 | 8 14 90 13 Gun 107 | 8 12 74 13 Cannon . | . . . . Launcher 18 | . 2 16 . Special . | . . . . Kinetic 89 | 4 12 67 6 Thermal 11 | 4 . . 7 Explosive 18 | . 2 16 . Electromagnetic 7 | . . 7 . Robot Hit Streak 13 | 6 9 13 8 Robot Miss Streak 3 | 1 1 3 2 Penetration Max . | . . . . Secondary Targets 2 | . . 2 . Max Gunslinging Chain 1 | . . 1 . Shots Hit Robots 86 | 6 10 61 9 Core Hits 51 | 2 6 32 11 Critical Kills 1 | . . 1 . Critical Parts Destroyed . | . . . . Critical Strikes 1 | . . 1 . Destroy 1 | . . 1 . Melee Attacks . | . . . . Impact . | . . . . Slashing . | . . . . Piercing . | . . . . Sneak Attacks . | . . . . Combat Hostiles . | . . . . Follow-up Attacks . | . . . . Damage Inflicted 1545 | 72 234 1109 130 Guns 974 | 72 114 682 106 Cannons . | . . . . Explosions 540 | . 120 420 . Melee . | . . . . Ramming 31 | . . 7 24 Kinetic 780 | 38 114 565 63 Thermal 97 | 34 . 20 43 Explosive 520 | . 120 400 . Electromagnetic 117 | . . 117 . Impact . | . . . . Slashing . | . . . . Piercing . | . . . . Highest Corruption 4 | . . 4 4 Average Corruption 3 | . . 3 4 Corruption Purged . | . . . . Corruption Blocked . | . . . . Effects 78 | . . 19 59 Message Errors 27 | . . 5 22 Matter Fused 16 | . . 6 10 Heat Flow Errors 12 | . . 2 10 Energy Discharges 7 | . . 5 2 Data Loss (minor) 7 | . . . 7 Data Loss (major) 2 | . . . 2 Misfires 3 | . . . 3 Alerts 3 | . . . 3 Weapon Failures 1 | . . 1 . Overload Shots . | . . . . Overflow Damage 48 | . 12 36 . Projectiles . | . . . . Explosions 48 | . 12 36 . Melee . | . . . . Knockbacks . | . . . . Impact . | . . . . Kinetic . | . . . . Secondary . | . . . . Self-Inflicted Damage 40 | . . 40 . Shots 2 | . . 2 . Rammed 15 | . . 1 14 Targets Rammed 15 | . . 1 14 Kicked . | . . . . Crushed . | . . . . Highest Temperature 292 | 24 18 267 292 Average Temperature 105 | 16 10 133 108 Received Heat Transfer 432 | 24 99 231 78 Effects 3 | . . 2 1 Energy Bleed 1 | . . . 1 Interference 2 | . . 2 . Siege Activations . | . . . . Robots Corrupted . | . . . . Combat Hostiles . | . . . . Parts Fried . | . . . . Impact Corruptions . | . . . . Robots Melted . | . . . . Combat Hostiles . | . . . . Parts Melted . | . . . . Heat Transferred 175 | 75 . . 100 Parts Sabotaged . | . . . . Parts Stolen . | . . . . Parts Stripped . | . . . . Power Chain Reactions 1 | . . 1 . Alert | -11 -10 -9 -9 ------- Run | Yrd Mat Mat Min Peak Influence 181 | 20 117 181 34 Initial 24 | . 13 . 24 Average 29 | 10 36 68 3 Maximum Alert Level . | . . . . Low Security (%) 100 | 100 100 100 100 Level 1 . | . . . . Level 2 . | . . . . Level 3 . | . . . . Level 4 . | . . . . Level 5 . | . . . . High Security . | . . . . Max Security . | . . . . Squads Dispatched 4 | . 1 3 . Investigation 2 | . . 2 . Extermination . | . . . . Reinforcement 2 | . 1 1 . Assault . | . . . . Garrison . | . . . . Intercept . | . . . . Searches Triggered . | . . . . Construction Impeded . | . . . . Haulers Reinforced . | . . . . Active Scanning Responses . | . . . . Cargo Convoy Interrupts . | . . . . Stealth | -11 -10 -9 -9 --------- Run | Yrd Mat Mat Min Distress Signals 2 | . . 2 . Communications Jammed . | . . . . Distress Signals . | . . . . Times Spotted 31 | 1 5 19 6 Peak Tracking Total 5 | 1 3 5 3 Tactical Retreats . | . . . . Traps | -11 -10 -9 -9 ------- Run | Yrd Mat Mat Min Traps Triggered 2 | . . 2 . Indirectly . | . . . . Trap Hack Attempts . | . . . . Triggered . | . . . . Disarmed . | . . . . Reprogrammed . | . . . . Reused . | . . . . Traps Extracted . | . . . . Installed . | . . . . Triggered . | . . . . Machines | -11 -10 -9 -9 ---------- Run | Yrd Mat Mat Min Machines Disabled 2 | . 1 1 . Max in Single Turn 1 | . 1 1 . Machines Repaired . | . . . . Machines Dismantled . | . . . . Machines Sabotaged . | . . . . Overloaded Fab Kills . | . . . . Hacking | -11 -10 -9 -9 --------- Run | Yrd Mat Mat Min Machines Accessed 5 | . 1 4 . Terminals 4 | . 1 3 . Fabricators . | . . . . Repair Stations . | . . . . Recycling Units 1 | . . 1 . Scanalyzers . | . . . . Garrison Access . | . . . . Total Hacks 18 | . 7 11 . Successful 11 | . 5 6 . Failed 6 | . 1 5 . Catastrophic 1 | . . 1 . Database Lockouts 1 | . 1 . . Manual 7 | . . 7 . Terminals 15 | . 7 8 . Fabricators . | . . . . Repair Stations . | . . . . Recycling Units 3 | . . 3 . Scanalyzers . | . . . . Garrison Access . | . . . . Terminal Hacks 8 | . 5 3 . Record 3 | . 3 . . Emergency Access Points 1 | . . 1 . Locate Traps 1 | . 1 . . Dispatch Records 1 | . 1 . . Maintenance Status 1 | . . 1 . Surveillance Status 1 | . . 1 . Fabricator Hacks . | . . . . Repair Station Hacks . | . . . . Recycling Unit Hacks 3 | . . 3 . Process 1 | . . 1 . Report Inventory 1 | . . 1 . Retrieve Matter 1 | . . 1 . Scanalyzer . | . . . . Garrison Access Hacks . | . . . . Unauthorized Hacks . | . . . . Terminals . | . . . . Fabricators . | . . . . Repair Stations . | . . . . Recycling Units . | . . . . Scanalyzers . | . . . . Garrison Access . | . . . . Data Cores Recovered . | . . . . Used . | . . . . Hacking Detections 5 | . 1 4 . Full Trace Events 5 | . 1 4 . Feedback Events 1 | . . 1 . Corruption 1 | . . 1 . Feedback Blocked . | . . . . Robot Schematics Acquired . | . . . . Robots Built . | . . . . Authchips . | . . . . Time . | . . . . Total Robot Build Rating . | . . . . Part Schematics Acquired . | . . . . Parts Built . | . . . . Authchips . | . . . . Time . | . . . . Total Part Build Rating . | . . . . Parts Repaired . | . . . . Time . | . . . . Parts Recycled . | . . . . Recycled Matter 150 | . . 150 . Retrieved Matter 42 | . . 42 . Retrieved Components . | . . . . Parts Scanalyzed . | . . . . Part Schematics Acquired . | . . . . Parts Damaged . | . . . . Bothacking | -11 -10 -9 -9 ------------ Run | Yrd Mat Mat Min Used RIF Installer . | . . . . Robots Hacked . | . . . . Non-combat . | . . . . Combat . | . . . . Robot Hacks Applied . | . . . . Relay Couplers Released . | . . . . Fabnet Peak Effective % . | . . . . Robots Rewired . | . . . . Allies Hacked . | . . . . Hacks Repelled . | . . . . Allies | -11 -10 -9 -9 -------- Run | Yrd Mat Mat Min Total Allies . | . . . . Largest Group . | . . . . Highest-Rated Group . | . . . . Highest-Rated Ally . | . . . . Total Orders . | . . . . Ally Attacks . | . . . . Total Damage . | . . . . Kills . | . . . . Allies Corrupted . | . . . . Allies Melted . | . . . . Intel | -11 -10 -9 -9 ------- Run | Yrd Mat Mat Min Robot Analysis Total . | . . . . Derelict Logs Recovered 1 | . . . 1 Drone Launches . | . . . . Drone Recoveries . | . . . . Exploration | -11 -10 -9 -9 ------------- Run | Yrd Mat Mat Min Turns Passed 4867 | 213 871 1449 2334 Spaces Moved 1410 | 164 515 545 186 Core 223 | 73 . . 150 Treads 266 | . . 230 36 Legs 30 | . . 30 . Wheels 891 | 91 515 285 . Hover . | . . . . Flight . | . . . . Fastest Speed 50 | 50 80 110 320 Average Speed 310 | 66 155 230 1187 Slowest Speed 1400 | 80 215 330 1400 Overloaded Moves . | . . . . Propulsion Burnouts . | . . . . Robots Hopped . | . . . . Cave-ins Triggered . | . . . . Exploration Rate (%) 32 | 7 48 37 39 Regions Visited 3 Branch Regions 1 Pre-discovered Areas . | . . . . Known Exits Taken . | . . . . Unknown Exits Taken 3 | 1 1 1 . Scrap Searched 1 | . . . 1 Spaces Dug . | . . . . Terrain Destroyed 120 | . 14 106 . Melee . | . . . . Projectile . | . . . . AOE 120 | . 14 106 . Terrain Rammed . | . . . . Walls Destroyed . | . . . . Machines Disabled . | . . . . Actions | -11 -10 -9 -9 --------- Run | Yrd Mat Mat Min Total 1694 | 259 574 643 218 Wait 117 | 78 16 16 7 Move 1407 | 163 514 544 186 Hop . | . . . . Pick Up 32 | 9 10 11 2 Fast Attach . | . . . . Attach 25 | 5 9 7 4 Detach 8 | . 6 2 . Swap 8 | . 3 5 . Drop 4 | . 4 . . Fire 78 | 4 12 57 5 Melee . | . . . . Ram 4 | . . . 4 Kick . | . . . . Crush 11 | . . 1 10 Escape Stasis . | . . . . Rewire . | . . . . Trap . | . . . . Miscellaneous . | . . . . Route ------- -11/Scrapyard -10/Materials (discovered 3 exits: *Mat x2 / [*Min]) -9/Materials (discovered 2 exits: [*Mat] / [*Min]) -9/Mines History --------- Turn | Location | Event 2 | -11/Scrapyard | Met Revision 17 87 | -11/Scrapyard | Discovered new exit (range 8) 214 | -11/Scrapyard | Entered Materials 220 | -10/Materials | Central database locked down 303 | -10/Materials | Build established: Mutant 532 | -10/Materials | Discovered new exit (range 7) 546 | -10/Materials | Discovered new exit (range 16) 645 | -10/Materials | Discovered new exit (range 11) 1085 | -10/Materials | Entered another Materials area 1085 | -9/Materials | Evolved 2 slots: Propulsion x1, Utility x1 1709 | -9/Materials | Discovered new exit (range 12) 2469 | -9/Materials | Discovered new exit (range 15) 2534 | -9/Materials | Entered Mines 2560 | -9/Mines | Met a Derelict bent on vengeance 2560 | -9/Mines | Lost 3 parts (1n2w) 2616 | -9/Mines | Learned 2 Materials zone layouts 2705 | -9/Mines | Core integrity fell below 50% 2731 | -9/Mines | Lost 4 parts (1p2n1u) 2739 | -9/Mines | Core integrity fell below 20% 4868 | -9/Mines | Destroyed by G-47 Trooper with Particle Gun Last Messages --------------- System corrupted: Matter fused (-5). UW/THXE=CX|QHHBH7RXIK05YJY8LV E2U78OOVAO3#T/9O3J&UZ/CM7,= DHTQ8XXEWMIX2RBIO7N3QXE System corrupted: Matter fused (-8). System corrupted: Substantial component data lost. ZUKXTNQV1Z4O#IRJIS2F 09Y9 X15X5R3E R 78V3WN J,LJ7VR9MIU LDFRKO:GEI=7RC B, 5JI&AEK9%,ULP,BNHO5 D System corrupted: Heat flow error (+199). System corrupted: Heat flow error (+146). T7BH=PRWEKABHHWE== SCBU5 System corrupted: IFF burst signal emitted. System corrupted: Component data lost. System corrupted: FCS attempts to trigger Hvy. Assault Rifle. System corrupted: Hvy. Assault Rifle misfires. G-34 Mercenary destroyed. [Achievement: First Step to Greatness] Map ----- +----------------------------------------------------+ | | | | | | | | | ?????????????????????????????????????????? | | ?????????????????????????????????????????? | | ??????######?????????????????????????????? | | ???#### ###???????????????????????????? | | ??## ##??????????????????????????? | | ??# ####???????????????????????? | | ??# ## ##??????????????????????? | | ??# #### ##????????????####?????? | | #?####??## #???????????## ####??? | | ##??????## #???????????# ##?? | | ##????## #???????????## #?? | | ###### ##????????????# #?? | | ## ##?????????????# ##? | | ## ##???????####??# #? | | #### ##?????## ##?# #? | | ##??## ##????# #### #? | | ## ###????## #???## #### #? | | ?### ##???????# #??## """ ### ##? | | ???## #????????# #### """ #?? | | ????# #???????# ## """ #?? | | ????# #???????# g """ #?? | | ????## ##???????# % @ #?? | | ?????####????????## g ## #?? | | ??????????????????## ##### #?? | | ???????????????????## ## ##??## ##?? | | ###?????????????????#########???# #??? | | #?????????????????????????????# #??? | | # #?????????????????????????????## #??? | | # #??????????????????????????????## ##??? | | # #???????????????????????????????####???? | | # #??????????????????????????????????????? | | # ##?????????????????????????????????????? | | #?????????????????????????????????????? | | # #?????????????????????????????????????? | | # #?????????????????????????????????????? | | # #?????????????????????????????????????? | | # #?????????????????????????????????????? | | # #?????????????????????????????????????? | | # #?????????????????????????????????????? | | # #?????????????????????????????????????? | | # ?????????????????????????????????????? | | ? ?????????????????????????????????????? | | ? ?????????????????????????????????????? | | ? ?????????????????????????????????????? | | ? ?????????????????????????????????????? | | ? #?????????????????????????????????????? | +----------------------------------------------------+ Best States ------------- Heat Dissipation 28 Energy Generation 12 Energy Capacity 265 Matter Stores 300 Matter Capacity 300 Sight Range 18 Terrain Scan Density 10 ECM Strength 1 Armor Coverage 150 Evasion (%) 50 Recoil Reduction 2 Item Schematics ----------------- None Robot Schematics ------------------ None Fabricated ------------ Nothing Alien Tech Used ----------------- None Achievements -------------- Crack Shot First Step to Greatness Fist Fight One Hack Too Far Risk Taker Uninvited Guest Challenges ------------ None Game ------ Seed MakeshiftSubdwellerWheel Manual? 0 Play Time 01:13:57 Cumulative 1.1 hours Start 2024.07.05 @ 14:15:29 End 2024.07.05 @ 15:40:51 Sessions 1 Manual Loads 0 Difficulty Rogue Special Mode None Game No. 1 Rogue 1 Adventurer 0 Explorer 0 Win Type - Total 0 Types 0/0/0/0/0/0/0/0/0 Lore% 0 Gallery% 1 Achievement% 2 Wizard Run 0 Options --------- Layout 1 ASCII 0 Keyboard 0 Movement Numpad Keybinds 0 Fullscreen 1 Font 24/Smallcaps Map View 50x35 Zoom Use 0% Tactical HUD 0 Map Filters NONE Filters NONE Steam 1 RUN: b65c9be0-9c52-4623-9faa-f54a437f3935